fUSD/lending_fUSD_20240502
["ID","MTS","AMOUNT","RATE_DAILY","PERIOD"]
[325283152,1714681847510,-500.0,0.00030136,2]
[325283153,1714681847522,-1133.62,0.00030136,2]
[325283154,1714681847532,-605.5,0.00030136,2]
[325283155,1714681847542,-500.0,0.00030136,2]
[325283156,1714681847552,-1129.9,0.00030136,2]
[325283157,1714681847562,-500.0,0.00030136,2]
[325283158,1714681847571,-1511.43,0.00030136,2]
[325283159,1714681847581,-500.0,0.00030136,2]
[325283160,1714681847591,-1782.71,0.00030136,2]
[325283161,1714681847602,-500.0,0.00030136,2]
[325283162,1714681847611,-880.75,0.00030136,2]
[325283163,1714681847621,-500.0,0.00030136,2]
[325283164,1714681847630,-1689.66,0.00030136,2]
[325283165,1714681847639,-500.0,0.00030136,2]
[325283166,1714681847649,-640.23,0.00030136,2]
[325283167,1714681847659,-882.96,0.00030136,2]
[325283168,1714681847668,-500.0,0.00030136,2]
[325283169,1714681847677,-500.0,0.00030136,2]
[325283170,1714681847687,-864.21,0.00030136,2]
[325283171,1714681847696,-500.0,0.00030136,2]
[325283172,1714681847705,-500.0,0.00030136,2]
[325283173,1714681847715,-500.0,0.00030136,2]
[325283174,1714681847724,-500.0,0.00030136,2]
[325283175,1714681847734,-1196.36,0.00030136,2]
[325283176,1714681847744,-1565.42,0.00030136,2]
[325283177,1714681847754,-500.0,0.00030136,2]
[325283178,1714681847764,-966.91,0.00030136,2]
[325283179,1714681847773,-500.0,0.00030136,2]
[325283180,1714681847783,-500.0,0.00030136,2]
[325283181,1714681847794,-780.71,0.00030136,2]
[325283182,1714681847804,-1140.23,0.00030136,2]
[325283183,1714681847813,-500.0,0.00030136,2]
[325283184,1714681847822,-500.0,0.00030136,2]
[325283185,1714681847832,-500.0,0.00030136,2]
[325283186,1714681847842,-500.0,0.00030136,2]
[325283187,1714681847851,-2133.55,0.00030136,2]
[325283188,1714681847861,-500.0,0.00030136,2]
[325283189,1714681847870,-577.46920651,0.00030136,2]
[325283190,1714681847880,-500.0,0.00030136,2]
[325283191,1714681847889,-500.0,0.00030136,2]
[325283192,1714681847900,-500.0,0.00030136,2]
[325283193,1714681847910,-500.0,0.00030136,2]
[325283194,1714681847921,-500.0,0.00030136,2]
[325283195,1714681847930,-500.0,0.00030136,2]
[325283196,1714681847941,-500.0,0.00030136,2]
[325283197,1714681847951,-500.0,0.00030136,2]
[325283198,1714681847960,-1081.32,0.00030136,2]
[325283199,1714681847970,-500.0,0.00030136,2]
[325283200,1714681847979,-1586.27,0.00030136,2]
[325283201,1714681847989,-500.0,0.00030136,2]
[325283202,1714681847998,-716.34,0.00030136,2]
[325283203,1714681848008,-500.0,0.00030136,2]
[325283204,1714681848018,-500.0,0.00030136,2]
[325283205,1714681848027,-2018.63,0.00030136,2]
[325283206,1714681848037,-500.0,0.00030136,2]
[325283207,1714681848046,-500.0,0.00030136,2]
[325283208,1714681848056,-500.0,0.00030136,2]
[325283209,1714681848067,-500.0,0.00030136,2]
[325283210,1714681848078,-500.0,0.00030136,2]
[325283211,1714681848087,-500.0,0.00030136,2]
[325283212,1714681848098,-500.0,0.00030136,2]
[325283213,1714681848108,-500.0,0.00030136,2]
[325283214,1714681848118,-500.0,0.00030136,2]
[325283215,1714681848127,-500.0,0.00030136,2]
[325283216,1714681848138,-839.27,0.00030136,2]
[325283217,1714681848147,-637.38,0.00030136,2]
[325283218,1714681848157,-500.0,0.00030136,2]
[325283219,1714681848166,-500.0,0.00030136,2]
[325283220,1714681848176,-500.0,0.00030136,2]
[325283221,1714681848186,-500.0,0.00030136,2]
[325283222,1714681848195,-500.0,0.00030136,2]
[325283223,1714681848204,-500.0,0.00030136,2]
[325283224,1714681848213,-500.0,0.00030136,2]
[325283225,1714681848225,-191.15515793,0.00030136,2]
[325283226,1714681848236,-500.0,0.00030136,2]
[325283227,1714681848245,-500.0,0.00030136,2]
[325283228,1714681848255,-500.0,0.00030136,2]
[325283229,1714681848264,-500.0,0.00030136,2]
[325283230,1714681848274,-500.0,0.00030136,2]
[325283231,1714681848283,-502.92420587,0.00030136,2]
[325283232,1714681848292,-500.0,0.00030136,2]
[325283233,1714681848302,-821.81,0.00030136,2]
[325283234,1714681848311,-651.28,0.00030136,2]
[325283235,1714681848321,-500.0,0.00030136,2]
[325283236,1714681848331,-823.24,0.00030136,2]
[325283237,1714681848340,-500.0,0.00030136,2]
[325283238,1714681848351,-500.0,0.00030136,2]
[325283239,1714681848361,-613.2,0.00030136,2]
[325283240,1714681848371,-500.0,0.00030136,2]
[325283241,1714681848380,-500.0,0.00030136,2]
[325283242,1714681848390,-500.0,0.00030136,2]
[325283243,1714681848400,-1809.06,0.00030136,2]
[325283244,1714681848409,-500.0,0.00030136,2]
[325283245,1714681848419,-1001.15,0.00030136,2]
[325283246,1714681848430,-500.0,0.00030136,2]
[325283247,1714681848439,-500.0,0.00030136,2]
[325283248,1714681848449,-500.0,0.00030136,2]
[325283249,1714681848459,-500.0,0.00030136,2]
[325283250,1714681848471,-938.55,0.00030136,2]
[325283251,1714681848480,-500.0,0.00030136,2]
[325283252,1714681848490,-1127.5,0.00030136,2]
[325283253,1714681848499,-500.0,0.00030136,2]
[325283254,1714681848509,-500.0,0.00030136,2]
[325283255,1714681848518,-500.0,0.00030136,2]
[325283256,1714681848528,-500.0,0.00030136,2]
[325283257,1714681848538,-1078.61,0.00030136,2]
[325283258,1714681848547,-500.0,0.00030136,2]
[325283259,1714681848557,-537.89,0.00030136,2]
[325283260,1714681848566,-500.0,0.00030136,2]
[325283261,1714681848575,-500.0,0.00030136,2]
[325283262,1714681848584,-500.0,0.00030136,2]
[325283263,1714681848595,-2492.63,0.00030136,2]
[325283264,1714681848604,-500.0,0.00030136,2]
[325283265,1714681848613,-1089.62,0.00030136,2]
[325283266,1714681848622,-584.1,0.00030136,2]
[325283267,1714681848632,-500.0,0.00030136,2]
[325283268,1714681848642,-500.0,0.00030136,2]
[325283269,1714681848651,-500.0,0.00030136,2]
[325283270,1714681848661,-1000.0,0.00030136,2]
[325283271,1714681848670,-500.0,0.00030136,2]
[325283272,1714681848681,-500.0,0.00030136,2]
[325283273,1714681848690,-500.0,0.00030136,2]
[325283274,1714681848700,-1604.21,0.00030136,2]
[325283275,1714681848710,-500.0,0.00030136,2]
[325283276,1714681848719,-1488.78,0.00030136,2]
[325283277,1714681848729,-500.0,0.00030136,2]
[325283278,1714681848738,-523.83,0.00030136,2]
[325283279,1714681848748,-1248.91,0.00030136,2]
[325283280,1714681848758,-500.0,0.00030136,2]
[325283281,1714681848767,-1353.74,0.00030136,2]
[325283282,1714681848777,-844.58,0.00030136,2]
[325283283,1714681848793,-500.0,0.00030136,2]
[325283284,1714681848802,-1049.28,0.00030136,2]
[325283285,1714681848811,-500.0,0.00030136,2]
[325283286,1714681848821,-500.0,0.00030136,2]
[325283287,1714681848830,-1084.31,0.00030136,2]
[325283288,1714681848840,-500.0,0.00030136,2]
[325283289,1714681848851,-1049.57,0.00030136,2]
[325283290,1714681848860,-347.39758502,0.00030136,2]
[325283291,1714681848869,-500.0,0.00030136,2]
[325283292,1714681848878,-592.64799597,0.00030136,2]
[325283293,1714681848887,-500.0,0.00030136,2]
[325283294,1714681848896,-978.93,0.00030136,2]
[325283295,1714681848905,-766.9,0.00030136,2]
[325283296,1714681848915,-1581.09,0.00030136,2]
[325283297,1714681848924,-500.0,0.00030136,2]
[325283298,1714681848934,-1027.42,0.00030136,2]
[325283299,1714681848943,-500.0,0.00030136,2]
[325283300,1714681848952,-500.0,0.00030136,2]
[325283301,1714681848962,-475.24294141,0.00030136,2]
[325283302,1714681848971,-568.18,0.00030136,2]
[325283303,1714681848981,-500.0,0.00030136,2]
[325283304,1714681848991,-500.0,0.00030136,2]
[325283305,1714681849001,-929.72,0.00030136,2]
[325283306,1714681849010,-1071.74,0.00030136,2]
[325283307,1714681849020,-500.0,0.00030136,2]
[325283308,1714681849030,-500.0,0.00030136,2]
[325283309,1714681849040,-1664.88,0.00030136,2]
[325283310,1714681849050,-616.39,0.00030136,2]
[325283311,1714681849060,-500.0,0.00030136,2]
[325283312,1714681849069,-992.57,0.00030136,2]
[325283313,1714681849079,-636.51,0.00030136,2]
[325283314,1714681849088,-1136.49,0.00030136,2]
[325283315,1714681849098,-857.9,0.00030136,2]
[325283316,1714681849108,-451.97860507,0.00030136,2]
[325283317,1714681849117,-500.0,0.00030136,2]
[325283318,1714681849127,-500.0,0.00030136,2]
[325283319,1714681849136,-500.0,0.00030136,2]
[325283320,1714681849146,-500.0,0.00030136,2]
[325283321,1714681849155,-500.0,0.00030136,2]
[325283322,1714681849165,-500.0,0.00030136,2]
[325283323,1714681849174,-500.0,0.00030136,2]
[325283324,1714681849184,-865.54,0.00030136,2]
[325283325,1714681849194,-500.0,0.00030136,2]
[325283326,1714681849203,-500.0,0.00030136,2]
[325283327,1714681849213,-500.0,0.00030136,2]
[325283328,1714681849222,-500.0,0.00030136,2]
[325283329,1714681849233,-500.0,0.00030136,2]
[325283330,1714681849243,-500.0,0.00030136,2]
[325283331,1714681849252,-334.96,0.00030136,2]
[325283332,1714681849262,-596.65,0.00030136,2]
[325283333,1714681849272,-500.0,0.00030136,2]
[325283334,1714681849281,-500.0,0.00030136,2]
[325283335,1714681849291,-1156.06,0.00030136,2]
[325283336,1714681849368,-500.0,0.00030136,2]
[325283337,1714681849378,-977.98,0.00030136,2]
[325283338,1714681849387,-606.92,0.00030136,2]
[325283339,1714681849397,-500.0,0.00030136,2]
[325283340,1714681849406,-500.0,0.00030136,2]
[325283341,1714681849415,-1388.97,0.00030136,2]
[325283342,1714681849424,-500.0,0.00030136,2]
[325283343,1714681849436,-822.86,0.00030136,2]
[325283344,1714681849445,-479.15157014,0.00030136,2]
[325283345,1714681849454,-1470.8,0.00030136,2]
[325283346,1714681849463,-500.0,0.00030136,2]
[325283347,1714681849476,-500.0,0.00030136,2]
[325283348,1714681849486,-500.0,0.00030136,2]
[325283349,1714681849495,-912.76,0.00030136,2]
[325283350,1714681849505,-504.08046271,0.00030136,2]
[325283351,1714681849515,-557.85,0.00030136,2]
[325283352,1714681849525,-500.0,0.00030136,2]
[325283353,1714681849535,-500.0,0.00030136,2]
[325283354,1714681849544,-560.26,0.00030136,2]
[325283355,1714681849556,-500.0,0.00030136,2]
[325283356,1714681849565,-584.54,0.00030136,2]
[325283357,1714681849574,-1085.75,0.00030136,2]
[325283358,1714681849584,-500.0,0.00030136,2]
[325283359,1714681849593,-500.0,0.00030136,2]
[325283360,1714681849602,-500.0,0.00030136,2]
[325283361,1714681849611,-500.0,0.00030136,2]
[325283362,1714681849620,-1644.66,0.00030136,2]
[325283363,1714681849630,-1241.33,0.00030136,2]
[325283364,1714681849639,-2286.77,0.00030136,2]
[325283365,1714681849649,-630.29,0.00030136,2]
[325283366,1714681849659,-500.0,0.00030136,2]
[325283367,1714681849668,-500.0,0.00030136,2]
[325283368,1714681849678,-500.0,0.00030136,2]
[325283369,1714681849688,-500.0,0.00030136,2]
[325283370,1714681849697,-500.0,0.00030136,2]
[325283371,1714681849707,-500.0,0.00030136,2]
[325283372,1714681849716,-874.27,0.00030136,2]
[325283373,1714681849725,-1476.58,0.00030136,2]
[325283374,1714681849735,-1160.78,0.00030136,2]
[325283375,1714681849744,-500.0,0.00030136,2]
[325283376,1714681849754,-500.0,0.00030136,2]
[325283377,1714681849763,-699.4,0.00030136,2]
[325283378,1714681849772,-502.57199475,0.00030136,2]
[325283379,1714681849782,-2403.64,0.00030136,2]
[325283380,1714681849791,-500.0,0.00030136,2]
[325283381,1714681849802,-500.0,0.00030136,2]
[325283382,1714681849811,-500.0,0.00030136,2]
[325283383,1714681849820,-2604.46,0.00030136,2]
[325283384,1714681849829,-500.0,0.00030136,2]
[325283385,1714681849839,-716.75,0.00030136,2]
[325283386,1714681849849,-500.0,0.00030136,2]
[325283387,1714681849859,-839.54,0.00030136,2]
[325283388,1714681849869,-500.0,0.00030136,2]
[325283389,1714681849879,-518.33,0.00030136,2]
[325283390,1714681849888,-1678.44,0.00030136,2]
[325283391,1714681849897,-500.0,0.00030136,2]
[325283392,1714681849907,-500.0,0.00030136,2]
[325283393,1714681849916,-935.64,0.00030136,2]
[325283394,1714681849926,-500.0,0.00030136,2]
[325283395,1714681849936,-500.0,0.00030136,2]
[325283396,1714681849945,-500.0,0.00030136,2]
[325283397,1714681849955,-500.0,0.00030136,2]
[325283398,1714681849964,-500.0,0.00030136,2]
[325283399,1714681849973,-500.0,0.00030136,2]
[325283400,1714681849983,-500.0,0.00030136,2]
[325283401,1714681849992,-500.0,0.00030136,2]
[325283402,1714681850001,-621.54,0.00030136,2]
[325283403,1714681850011,-500.0,0.00030136,2]
[325283404,1714681850021,-500.0,0.00030136,2]
[325283405,1714681850030,-500.0,0.00030136,2]
[325283406,1714681850040,-500.0,0.00030136,2]
[325283407,1714681850050,-1568.61,0.00030136,2]
[325283408,1714681850059,-500.0,0.00030136,2]
[325283409,1714681850069,-1182.01,0.00030136,2]
[325283410,1714681850079,-500.0,0.00030136,2]
[325283411,1714681850090,-500.0,0.00030136,2]
[325283412,1714681850101,-500.0,0.00030136,2]
[325283413,1714681850110,-500.0,0.00030136,2]
[325283414,1714681850119,-513.89036949,0.00030136,2]
[325283415,1714681850129,-500.0,0.00030136,2]
[325283416,1714681850138,-2702.39,0.00030136,2]
[325283417,1714681850148,-572.72,0.00030136,2]
[325283418,1714681850157,-1249.99,0.00030136,2]
[325283419,1714681850166,-500.0,0.00030136,2]
[325283420,1714681850176,-542.67,0.00030136,2]
[325283421,1714681850185,-500.0,0.00030136,2]
[325283422,1714681850195,-500.0,0.00030136,2]
[325283423,1714681850204,-957.84,0.00030136,2]
[325283424,1714681850213,-500.0,0.00030136,2]
[325283425,1714681850222,-500.0,0.00030136,2]
[325283426,1714681850233,-500.0,0.00030136,2]
[325283427,1714681850242,-523.79833316,0.00030136,2]
[325283428,1714681850252,-500.0,0.00030136,2]
[325283429,1714681850262,-500.0,0.00030136,2]
[325283430,1714681850271,-501.20008645,0.00030136,2]
[325283431,1714681850281,-1588.6,0.00030136,2]
[325283432,1714681850290,-500.0,0.00030136,2]
[325283433,1714681850299,-574.56,0.00030136,2]
[325283434,1714681850308,-500.0,0.00030136,2]
[325283435,1714681850318,-500.0,0.00030136,2]
[325283436,1714681850327,-500.0,0.00030136,2]
[325283437,1714681850336,-500.34066663,0.00030136,2]
[325283438,1714681850347,-500.0,0.00030136,2]
[325283439,1714681850356,-500.0,0.00030136,2]
[325283440,1714681850366,-647.56017716,0.00030136,2]
[325283441,1714681850375,-500.0,0.00030136,2]
[325283442,1714681850383,-970.25,0.00030136,2]
[325283443,1714681850393,-1324.87,0.00030136,2]
[325283444,1714681850402,-518.38753894,0.00030136,2]
[325283445,1714681850411,-500.0,0.00030136,2]
[325283446,1714681850420,-975.24,0.00030136,2]
[325283447,1714681850431,-500.0,0.00030136,2]
[325283448,1714681850440,-500.0,0.00030136,2]
[325283449,1714681850449,-500.0,0.00030136,2]
[325283450,1714681850458,-6698.76,0.00030136,2]
[325283451,1714681850469,-500.0,0.00030136,2]
[325283452,1714681850479,-259.33279999,0.00030136,2]
[325283453,1714681850488,-500.0,0.00030136,2]
[325283454,1714681850498,-378.18477083,0.00030136,2]
[325283455,1714681850507,-500.0,0.00030136,2]
[325283456,1714681850516,-500.0,0.00030136,2]
[325283457,1714681850527,-3829.05,0.00030136,2]
[325283458,1714681850537,-806.95,0.00030136,2]
[325283459,1714681850547,-500.0,0.00030136,2]
[325283460,1714681850557,-500.0,0.00030136,2]
[325283461,1714681850567,-500.0,0.00030136,2]
[325283462,1714681850577,-766.65,0.00030136,2]
[325283463,1714681850586,-3469.31,0.00030136,2]
[325283464,1714681850598,-855.72,0.00030136,2]
[325283465,1714681850608,-535.96,0.00030136,2]
[325283466,1714681850617,-500.0,0.00030136,2]
[325283467,1714681850627,-500.0,0.00030136,2]
[325283468,1714681850636,-2000.23,0.00030136,2]
[325283469,1714681850646,-500.0,0.00030136,2]
[325283470,1714681850655,-26810.66,0.00030136,2]
[325283471,1714681850665,-500.0,0.00030136,2]
[325283472,1714681850674,-500.0,0.00030136,2]
[325283473,1714681850684,-725.25,0.00030136,2]
[325283474,1714681850694,-708.4,0.00030136,2]
[325283475,1714681850704,-500.0,0.00030136,2]
[325283476,1714681850713,-589.65,0.00030136,2]
[325283477,1714681850723,-504.45042747,0.00030136,2]
[325283478,1714681850732,-3336.0,0.00030136,2]
[325283479,1714681850741,-500.0,0.00030136,2]
[325283480,1714681850751,-500.0,0.00030136,2]
[325283481,1714681850761,-500.0,0.00030136,2]
[325283482,1714681850771,-500.0,0.00030136,2]
[325283483,1714681850781,-500.0,0.00030136,2]
[325283484,1714681850791,-1783.33,0.00030136,2]
[325283485,1714681850801,-500.0,0.00030136,2]
[325283486,1714681850811,-1841.46,0.00030136,2]
[325283487,1714681850820,-797.22,0.00030136,2]
[325283488,1714681850832,-846.64,0.00030136,2]
[325283489,1714681850841,-1179.4,0.00030136,2]
[325283490,1714681850852,-500.0,0.00030136,2]
[325283491,1714681850861,-500.0,0.00030136,2]
[325283492,1714681850872,-290.97901662,0.00030136,2]
[325283493,1714681850881,-1119.04,0.00030136,2]
[325283494,1714681850890,-1471.45,0.00030136,2]
[325283495,1714681850899,-500.0,0.00030136,2]
[325283496,1714681850908,-500.0,0.00030136,2]
[325283497,1714681850917,-500.0,0.00030136,2]
[325283498,1714681850926,-1703.54,0.00030136,2]
[325283499,1714681850935,-1255.28,0.00030136,2]
[325283500,1714681850944,-3798.64,0.00030136,2]
[325283501,1714681850953,-515.37,0.00030136,2]
[325283502,1714681850962,-652.09,0.00030136,2]
[325283503,1714681850971,-500.0,0.00030136,2]
[325283504,1714681850980,-1029.14,0.00030136,2]
[325283505,1714681850989,-725.75,0.00030136,2]
[325283506,1714681850999,-503.32,0.00030136,2]
[325283507,1714681851008,-500.0,0.00030136,2]
[325283508,1714681851017,-500.0,0.00030136,2]
[325283509,1714681851026,-2728.92,0.00030136,2]
[325283510,1714681851035,-500.0,0.00030136,2]
[325283511,1714681851044,-804.64,0.00030136,2]
[325283512,1714681851054,-500.0,0.00030136,2]
[325283513,1714681851063,-500.0,0.00030136,2]
[325283514,1714681851072,-1049.87,0.00030136,2]
[325283515,1714681851081,-688.71,0.00030136,2]
[325283516,1714681851090,-500.0,0.00030136,2]
[325283517,1714681851103,-500.0,0.00030136,2]
[325283518,1714681851112,-500.0,0.00030136,2]
[325283519,1714681851121,-500.0,0.00030136,2]
[325283520,1714681851130,-704.48,0.00030136,2]
[325283521,1714681851142,-500.0,0.00030136,2]
[325283522,1714681851151,-500.0,0.00030136,2]
[325283523,1714681851160,-500.0,0.00030136,2]
[325283524,1714681851169,-593.06,0.00030136,2]
[325283525,1714681851178,-579.93,0.00030136,2]
[325283526,1714681851187,-1418.35,0.00030136,2]
[325283527,1714681851196,-500.0,0.00030136,2]
[325283528,1714681851205,-500.0,0.00030136,2]
[325283529,1714681851214,-500.0,0.00030136,2]
[325283530,1714681851224,-18547.04,0.00030136,2]
[325283531,1714681851233,-514.47,0.00030136,2]
[325283532,1714681851243,-500.0,0.00030136,2]
[325283533,1714681851252,-3999.83,0.00030136,2]
[325283534,1714681851261,-500.0,0.00030136,2]
[325283535,1714681851270,-2984.02,0.00030136,2]
[325283536,1714681851279,-500.0,0.00030136,2]
[325283537,1714681851288,-500.0,0.00030136,2]
[325283538,1714681851297,-665.85,0.00030136,2]
[325283539,1714681851307,-160.54951326,0.00030136,2]
[325283540,1714681851315,-1820.79,0.00030136,2]
[325283541,1714681851325,-487.83023256,0.00030136,2]
[325283542,1714681851334,-705.23,0.00030136,2]
[325283543,1714681851344,-567.84,0.00030136,2]
[325283544,1714681851353,-500.0,0.00030136,2]
[325283545,1714681851362,-500.0,0.00030136,2]
[325283546,1714681851371,-1231.73,0.00030136,2]
[325283547,1714681851380,-2731.6,0.00030136,2]
[325283548,1714681851389,-500.0,0.00030136,2]
[325283549,1714681851399,-1199.56,0.00030136,2]
[325283550,1714681851408,-500.0,0.00030136,2]
[325283551,1714681851417,-500.0,0.00030136,2]
[325283552,1714681851426,-1106.26,0.00030136,2]
[325283553,1714681851441,-3381.03,0.00030136,2]
[325283554,1714681851450,-500.0,0.00030136,2]
[325283555,1714681851459,-2850.76,0.00030136,2]
[325283556,1714681851469,-500.0,0.00030136,2]
[325283557,1714681851484,-500.0,0.00030136,2]
[325283558,1714681851494,-500.0,0.00030136,2]
[325283559,1714681851505,-2495.95,0.00030136,2]
[325283560,1714681851516,-500.0,0.00030136,2]
[325283561,1714681851527,-500.0,0.00030136,2]
[325283562,1714681851538,-500.0,0.00030136,2]
[325283563,1714681851551,-500.0,0.00030136,2]
[325283564,1714681851562,-500.0,0.00030136,2]
[325283565,1714681851571,-1687.52,0.00030136,2]
[325283566,1714681851581,-500.0,0.00030136,2]
[325283567,1714681851591,-500.0,0.00030136,2]
[325283568,1714681851603,-160.43,0.00030136,2]
[325283569,1714681851612,-500.0,0.00030136,2]
[325283570,1714681851621,-45074.22,0.00030136,2]
[325283571,1714681851631,-2424.92,0.00030136,2]
[325283572,1714681851641,-500.0,0.00030136,2]
[325283573,1714681851651,-807.09,0.00030136,2]
[325283574,1714681851661,-500.0,0.00030136,2]
[325283575,1714681851670,-839.03,0.00030136,2]
[325283576,1714681851680,-2093.21,0.00030136,2]
[325283577,1714681851690,-1346.03,0.00030136,2]
[325283578,1714681851699,-504.4,0.00030136,2]
[325283579,1714681851709,-1199.24,0.00030136,2]
[325283580,1714681851718,-886.13,0.00030136,2]
[325283581,1714681851727,-500.0,0.00030136,2]
[325283582,1714681851737,-8317.35,0.00030136,2]
[325283583,1714681851746,-500.0,0.00030136,2]
[325283584,1714681851755,-2084.29,0.00030136,2]
[325283585,1714681851765,-500.0,0.00030136,2]
[325283586,1714681851774,-591.52,0.00030136,2]
[325283587,1714681851784,-258.8109631,0.00030136,4]
[325283588,1714681851793,-634.97,0.00030136,2]
[325283589,1714681851803,-500.0,0.00030136,2]
[325283590,1714681851812,-500.0,0.00030136,2]
[325283591,1714681851821,-500.0,0.00030136,2]
[325283592,1714681851831,-503.13,0.00030136,2]
[325283593,1714681851840,-761.55,0.00030136,2]
[325283594,1714681851852,-500.0,0.00030136,2]
[325283595,1714681851861,-7852.58,0.00030136,2]
[325283596,1714681851871,-942.64,0.00030136,2]
[325283597,1714681851880,-500.0,0.00030136,2]
[325283598,1714681851889,-1096.47,0.00030136,2]
[325283599,1714681851898,-1033.18,0.00030136,2]
[325283600,1714681851908,-3943.59,0.00030136,2]
[325283601,1714681851917,-1086.98,0.00030136,2]
[325283602,1714681851926,-3081.10211437,0.00030136,4]
[325283603,1714681851935,-743.51,0.00030136,2]
[325283604,1714681851944,-522.35298581,0.00030136,2]
[325283605,1714681851954,-670.97,0.00030136,2]
[325283606,1714681851963,-10041.45,0.00030136,2]
[325283607,1714681851973,-500.0,0.00030136,2]
[325283608,1714681851983,-500.0,0.00030136,2]
[325283609,1714681851992,-957.98,0.00030136,2]
[325283610,1714681852001,-500.0,0.00030136,2]
[325283611,1714681852011,-500.0,0.00030136,2]
[325283612,1714681852020,-1248.49,0.00030136,2]
[325283613,1714681852030,-1104.87,0.00030136,2]
[325283614,1714681852041,-500.0,0.00030136,2]
[325283615,1714681852050,-500.0,0.00030136,2]
[325283616,1714681852060,-500.0,0.00030136,2]
[325283617,1714681852070,-1447.63,0.00030136,2]
[325283618,1714681852079,-1315.59,0.00030136,2]
[325283619,1714681852089,-2882.26,0.00030136,2]
[325283620,1714681852100,-621.52,0.00030136,2]
[325283621,1714681852109,-624.98,0.00030136,2]
[325283622,1714681852119,-6170.13,0.00030136,2]
[325283623,1714681852128,-5408.71,0.00030136,2]
[325283624,1714681852137,-500.0,0.00030136,2]
[325283625,1714681852147,-500.0,0.00030136,2]
[325283626,1714681852156,-886.47,0.00030136,2]
[325283627,1714681852166,-1889.47,0.00030136,2]
[325283628,1714681852175,-500.0,0.00030136,2]
[325283629,1714681852184,-204.54387257,0.00030136,2]
[325283630,1714681852193,-500.0,0.00030136,2]
[325283631,1714681852202,-2241.16,0.00030136,2]
[325283632,1714681852211,-500.0,0.00030136,2]
[325283633,1714681852221,-16696.29,0.00030136,2]
[325283634,1714681852231,-500.0,0.00030136,2]
[325283635,1714681852241,-864.0,0.00030136,2]
[325283636,1714681852251,-2391.69,0.00030136,2]
[325283637,1714681852260,-500.0,0.00030136,2]
[325283638,1714681852270,-500.0,0.00030136,2]
[325283639,1714681852279,-1405.7,0.00030136,2]
[325283640,1714681852289,-500.0,0.00030136,2]
[325283641,1714681852298,-12717.01,0.00030136,2]
[325283642,1714681852307,-500.0,0.00030136,2]
[325283643,1714681852317,-930.73,0.00030136,2]
[325283644,1714681852326,-3478.78,0.00030136,2]
[325283645,1714681852335,-2984.22,0.00030136,2]
[325283646,1714681852346,-500.0,0.00030136,2]
[325283647,1714681852356,-1474.56,0.00030136,2]
[325283648,1714681852365,-3152.5,0.00030136,2]
[325283649,1714681852374,-1153.79,0.00030136,2]
[325283650,1714681852383,-2984.38,0.00030136,2]
[325283651,1714681852393,-4613.08,0.00030136,2]